[Event "Lueneburg Open-B 2019"]
[Site "Lueneburg"]
[Date "2019.08.09"]
[Round "7.5"]
[White "Buetow, Ingo"]
[Black "Gerdau, Niklas"]
[Result "0-1"]
[ECO "D10"]
[WhiteElo "1747"]
[BlackElo "1704"]
[Annotator "NA RC"]
[PlyCount "102"]
[EventDate "2019.08.03"]
[EventType "swiss"]
[EventCountry "GER"]
[SourceTitle "playchess.com"]
[Source "ChessBase"]
[SourceQuality "1"]
[TimeControl "40/5400+30:1800+30"]

1. c4 {[%emt 0:00:00]} c6 {[%emt 0:00:00]} 2. d4 {[%emt 0:00:00]} d5 {[%emt 0:00:00]} 3. cxd5 {[%emt 0:00:00]} cxd5 {[%emt 0:00:00]} 4. Bf4 {[%emt 0:00:00]} Qb6 {[%emt 0:00:17]} 5. Nc3 {[%emt 0:00:16]} Nf6 {[%emt 0:00:15]} 6. b3 {[%emt 0:04:51]} Bf5 {[%emt 0:11:27]} 7. Na4 {[%emt 0:06:42]} Qb4+ {[%emt 0:01:33]} 8. Qd2 {[%emt 0:00:59]} e6 {[%emt 0:00:05]} 9. Qxb4 {[%emt 0:01:09]} Bxb4+ {[%emt 0:01:58]} 10. Bd2 {[%emt 0:00:15]} Ba3 {[%emt 0:00:49]} 11. Bc1 {[%emt 0:01:12]} Bd6 {[%emt 0:01:57]} 12. e3 {[%emt 0:04:00]} O-O {[%emt 0:02:22]} 13. Nf3 {[%emt 0:00:47]} Ne4 {[%emt 0:01:39]} 14. a3 {[%emt 0:01:24]} Nd7 {[%emt 0:02:31]} 15. Nh4 {[%emt 0:02:35]} Rfc8 {[%emt 0:01:04]} 16. Nxf5 {[%emt 0:01:04]} exf5 {[%emt 0:00:08]} 17. Bd3 {[%emt 0:06:56]} b5 {[%emt 0:13:01]} 18. Bxb5 {[%emt 0:02:12]} Nb6 {[%emt 0:00:25]} 19. Nxb6 {[%emt 0:01:22]} axb6 {[%emt 0:00:06]} 20. Bd3 {[%emt 0:00:55]} Rc3 {[%emt 0:00:44]} 21. Bxe4 {[%emt 0:13:44]} fxe4 {[%emt 0:00:17]} 22. Rb1 {[%emt 0:00:25]} Bxa3 {[%emt 0:00:53]} 23. O-O {[%emt 0:01:12]} Bd6 {[%emt 0:00:52]} 24. Rd1 {[%emt 0:02:44]} Kf8 {[%emt 0:01:57]} 25. g3 {[%emt 0:03:21]} Ra2 {[%emt 0:00:28]} 26. Bd2 {[%emt 0:01:55]} Rd3 {[%emt 0:02:51]} 27. Be1 {[%emt 0:00:46]} Rxd1 {[%emt 0:00:08]} 28. Rxd1 {[%emt 0:00:07]} Rb2 {[%emt 0:00:04]} 29. b4 {[%emt 0:00:49]} Ke7 {[%emt 0:01:25]} 30. Ra1 {[%emt 0:03:51]} Kd7 {[%emt 0:00:43]} 31. Ra7+ {[%emt 0:01:25]} Kc6 {[%emt 0:01:25]} 32. Kg2 {[%emt 0:03:43]} Rb1 {[%emt 0:02:41]} 33. Bd2 {[%emt 0:00:26]} Rd1 {[%emt 0:00:39]} 34. Bc3 {[%emt 0:00:40]} Kb5 {[%emt 0:03:59]} 35. Rd7 {[%emt 0:01:33]} Bxb4 {[%emt 0:00:14]} 36. Bxb4 {[%emt 0:00:14]} Kxb4 {[%emt 0:00:06]} 37. Rxd5 {[%emt 0:00:05]} Ka4 {[%emt 0:01:24]} 38. Rd7 {[%emt 0:00:08]} h5 {[%emt 0:03:58]} 39. Rxf7 {[%emt 0:00:12]} g6 {[%emt 0:01:12]} 40. Rf6 {[%emt 0:00:20]} b5 {[%emt 0:00:06]} 41. Ra6+ {[%emt 0:30:05]} Kb3 {[%emt 0:30:18]} 42. Rxg6 {[%emt 0:00:05]} b4 {[%emt 0:00:09]} 43. Rh6 {[%emt 0:00:31]} Ka2 {[%emt 0:00:19]} 44. Ra6+ {[%emt 0:00:05]} Kb2 {[%emt 0:00:16]} 45. f4 {[%emt 0:00:24]} Rd2+ {[%emt 0:01:59]} 46. Kg1 {[%emt 0:00:29]} b3 {[%emt 0:00:14]} 47. Rb6 {[%emt 0:01:00]} Rd3 {[%emt 0:01:21]} 48. Rh6 {[%emt 0:02:36]} Kc2 {[%emt 0:00:11]} 49. Rxh5 {[%emt 0:00:07]} b2 {[%emt 0:00:10]} 50. Rb5 {[%emt 0:00:04]} Rb3 {[%emt 0:00:11]} 51. Rc5+ {[%emt 0:00:17]} Kd2 {[%emt 0:00:17]} 0-1

[Event "Lueneburg Open-B 2019"]
[Site "Lueneburg"]
[Date "2019.08.09"]
[Round "7.6"]
[White "Groth, Matthias"]
[Black "Ahrens, Gunnar"]
[Result "*"]
[ECO "D67"]
[WhiteElo "1737"]
[BlackElo "1764"]
[Annotator "NA RC"]
[PlyCount "45"]
[EventDate "2019.08.03"]
[EventType "swiss"]
[EventCountry "GER"]
[SourceTitle "playchess.com"]
[Source "ChessBase"]
[SourceQuality "1"]
[TimeControl "40/5400+30:1800+30"]

1. d4 {[%emt 0:00:00]} Nf6 {[%emt 0:00:00]} 2. c4 {[%emt 0:00:00]} d5 {[%emt 0:00:00]} 3. Nc3 {[%emt 0:00:00]} e6 {[%emt 0:00:05]} 4. Nf3 {[%emt 0:00:00]} Be7 {[%emt 0:00:27]} 5. Bg5 {[%emt 0:00:00]} Nbd7 {[%emt 0:00:13]} 6. e3 {[%emt 0:00:06]} O-O {[%emt 0:00:17]} 7. Bd3 {[%emt 0:00:03]} c6 {[%emt 0:01:25]} 8. O-O {[%emt 0:00:06]} dxc4 {[%emt 0:01:50]} 9. Bxc4 {[%emt 0:00:01]} Nd5 {[%emt 0:00:12]} 10. Bxe7 {[%emt 0:01:05]} Qxe7 {[%emt 0:00:24]} 11. Rc1 {[%emt 0:00:42]} b5 {[%emt 0:12:38]} 12. Bd3 {[%emt 0:00:55]} Bb7 {[%emt 0:01:31]} 13. Ne4 {[%emt 0:03:19]} h6 {[%emt 0:04:25]} 14. Nc5 {[%emt 0:00:33]} Nxc5 {[%emt 0:00:40]} 15. Rxc5 {[%emt 0:00:03]} Rac8 {[%emt 0:00:17]} 16. Ne5 {[%emt 0:00:39]} Rc7 {[%emt 0:02:20]} 17. a3 {[%emt 0:00:58]} Rfc8 {[%emt 0:00:49]} 18. Qc2 {[%emt 0:08:23]} f5 {[%emt 0:01:01]} 19. Rc1 {[%emt 0:03:25]} Qe8 {[%emt 0:04:56]} 20. e4 {[%emt 0:03:19]} fxe4 {[%emt 0:05:38]} 21. Bxe4 {[%emt 0:01:03]} Qe7 {[%emt 0:04:11]} 22. Bh7+ {[%emt 0:00:22]} Kh8 {[%emt 0:00:36]} 23. Ng6+ {[%emt 0:00:07]} *

[Event "Lueneburg Open-B 2019"]
[Site "Lueneburg"]
[Date "2019.08.09"]
[Round "7.8"]
[White "Schulze, Lukas"]
[Black "Kolhoff, Manfred"]
[Result "0-1"]
[ECO "E01"]
[WhiteElo "1724"]
[BlackElo "1616"]
[Annotator "NA RC"]
[PlyCount "90"]
[EventDate "2019.08.03"]
[EventType "swiss"]
[EventCountry "GER"]
[SourceTitle "playchess.com"]
[Source "ChessBase"]
[SourceQuality "1"]
[TimeControl "40/5400+30:1800+30"]

1. Nf3 {[%emt 0:00:00]} Nf6 {[%emt 0:00:00]} 2. c4 {[%emt 0:00:00]} e6 {[%emt 0:00:18]} 3. g3 {[%emt 0:00:00]} d5 {[%emt 0:00:05]} 4. Bg2 {[%emt 0:00:11]} c5 {[%emt 0:01:40]} 5. O-O {[%emt 0:00:42]} Nc6 {[%emt 0:00:33]} 6. d4 {[%emt 0:02:34]} Qb6 {[%emt 0:03:06]} 7. e3 {[%emt 0:04:46]} Bd7 {[%emt 0:00:18]} 8. Nc3 {[%emt 0:00:56]} cxd4 {[%emt 0:01:41]} 9. cxd5 {[%emt 0:09:29]} exd5 {[%emt 0:15:02]} 10. Nxd4 {[%emt 0:01:32]} Be6 {[%emt 0:01:32]} 11. Nxe6 {[%emt 0:02:30]} fxe6 {[%emt 0:00:10]} 12. b3 {[%emt 0:01:18]} Be7 {[%emt 0:00:44]} 13. Qh5+ {[%emt 0:00:56]} Nxh5 {[%emt 1:11:21]} 14. Bb2 {[%emt 0:00:14]} Nf6 {[%emt 0:00:00]} 15. Bh3 {[%emt 0:00:40]} Nb4 {[%emt 0:00:00]} 16. Na4 {[%emt 0:00:46]} Qd6 {[%emt 0:00:00]} 17. f4 {[%emt 0:00:48]} Nd3 {[%emt 0:00:00]} 18. Bd4 {[%emt 0:00:22]} b5 {[%emt 0:00:00]} 19. Nc3 {[%emt 0:00:17]} a6 {[%emt 0:00:00]} 20. Rfd1 {[%emt 0:00:21]} Nb4 {[%emt 0:00:00]} 21. Rac1 {[%emt 0:00:29]} Nc6 {[%emt 0:00:00]} 22. Bxf6 {[%emt 0:01:14]} Bxf6 {[%emt 0:00:00]} 23. Ne4 {[%emt 0:00:07]} Qd7 {[%emt 0:00:00]} 24. Nc5 {[%emt 0:00:31]} Qa7 {[%emt 0:00:00]} 25. Nxe6 {[%emt 0:01:26]} Ne7 {[%emt 0:00:00]} 26. Nc7+ {[%emt 0:01:01]} Kf8 {[%emt 0:00:00]} 27. Nxa8 {[%emt 0:00:31]} Qxa8 {[%emt 0:00:00]} 28. Be6 {[%emt 0:00:19]} g6 {[%emt 0:00:00]} 29. Rc7 {[%emt 0:01:30]} Kg7 {[%emt 0:00:00]} 30. Rxd5 {[%emt 0:00:58]} Rd8 {[%emt 0:00:00]} 31. Rdc5 {[%emt 0:01:10]} Qf3 {[%emt 0:00:00]} 32. Rc1 {[%emt 0:01:13]} Qxe3+ {[%emt 0:00:00]} 33. Kf1 {[%emt 0:00:14]} Qxe6 {[%emt 0:00:00]} 34. Re1 {[%emt 0:00:32]} Qh3+ {[%emt 0:00:00]} 35. Ke2 {[%emt 0:00:39]} Qxh2+ {[%emt 0:00:00]} 36. Kf3 {[%emt 0:00:08]} Qh5+ {[%emt 0:00:00]} 37. Ke3 {[%emt 0:00:22]} Bd4+ {[%emt 0:00:00]} 38. Ke4 {[%emt 0:00:50]} Qd5+ {[%emt 0:00:00]} 39. Kd3 {[%emt 0:00:03]} Bb6+ {[%emt 0:00:00]} 40. Kc2 {[%emt 0:00:26]} Qd2+ {[%emt 0:00:00]} 41. Kb1 {[%emt 0:30:03]} Qxe1+ {[%emt 0:25:45]} 42. Rc1 {[%emt 0:00:05]} Qe4+ {[%emt 0:00:24]} 43. Kb2 {[%emt 0:00:24]} Rd2+ {[%emt 0:00:25]} 44. Ka3 {[%emt 0:00:32]} b4+ {[%emt 0:00:37]} 45. Ka4 {[%emt 0:00:13]} Rxa2# {[%emt 0:00:13]} 0-1

[Event "Lueneburg Open-B 2019"]
[Site "Lueneburg"]
[Date "2019.08.09"]
[Round "7.9"]
[White "Stolzenwald, Karl-Heinz"]
[Black "Kasipour Azbari, Seyed Arvin"]
[Result "1/2-1/2"]
[ECO "A00"]
[WhiteElo "1600"]
[BlackElo "1765"]
[Annotator "NA"]
[PlyCount "165"]
[EventDate "2019.08.03"]
[EventType "swiss"]
[EventCountry "GER"]
[SourceTitle "playchess.com"]
[Source "ChessBase"]
[SourceQuality "1"]
[TimeControl "40/5400+30:1800+30"]

1. b4 {[%emt 0:05:56]} e5 {[%emt 0:00:39]} 2. Bb2 {[%emt 0:00:41]} Bxb4 {[%emt 0:00:07]} 3. Bxe5 {[%emt 0:00:01]} Nf6 {[%emt 0:00:02]} 4. c4 {[%emt 0:00:16]} O-O {[%emt 0:02:49]} 5. Nf3 {[%emt 0:00:07]} Nc6 {[%emt 0:01:21]} 6. Bb2 {[%emt 0:00:07]} d5 {[%emt 0:04:43]} 7. e3 {[%emt 0:00:29]} Bg4 {[%emt 0:04:53]} 8. cxd5 {[%emt 0:01:06]} Qxd5 {[%emt 0:04:06]} 9. Be2 {[%emt 0:00:53]} Rad8 {[%emt 0:17:53]} 10. O-O {[%emt 0:00:30]} Ne4 {[%emt 0:02:40]} 11. Qc2 {[%emt 0:02:58]} Rfe8 {[%emt 0:17:36]} 12. d4 {[%emt 0:05:43]} Bd6 {[%emt 0:04:38]} 13. Nc3 {[%emt 0:09:38]} Nxc3 {[%emt 0:04:47]} 14. Bxc3 {[%emt 0:00:44]} Qh5 {[%emt 0:05:59]} 15. Rfe1 {[%emt 0:05:34]} Bxf3 {[%emt 0:01:03]} 16. Bxf3 {[%emt 0:00:53]} Qxh2+ {[%emt 0:00:09]} 17. Kf1 {[%emt 0:00:14]} Bf8 {[%emt 0:12:58]} 18. Rad1 {[%emt 0:02:45]} Qd6 {[%emt 0:02:12]} 19. e4 {[%emt 0:03:38]} Nb4 {[%emt 0:05:03]} 20. Qe2 {[%emt 0:04:05]} Qh6 {[%emt 0:01:21]} 21. Kg1 {[%emt 0:03:49]} Nd5 {[%emt 0:03:22]} 22. Bd2 {[%emt 0:01:01]} Qf6 {[%emt 0:01:25]} 23. g3 {[%emt 0:05:26]} Nb6 {[%emt 0:00:44]} 24. e5 {[%emt 0:00:27]} Qe6 {[%emt 0:00:45]} 25. Bc3 {[%emt 0:02:04]} Nd5 {[%emt 0:00:29]} 26. Bd2 {[%emt 0:03:13]} Nb6 {[%emt 0:00:28]} 27. Bg5 {[%emt 0:07:22]} f6 {[%emt 0:00:43]} 28. Bg4 {[%emt 0:01:15]} Qd5 {[%emt 0:00:31]} 29. Bf4 {[%emt 0:00:53]} Bb4 {[%emt 0:00:23]} 30. Bf3 {[%emt 0:00:01]} Qc4 {[%emt 0:00:31]} 31. Qxc4+ {[%emt 0:00:33]} Nxc4 {[%emt 0:00:04]} 32. Re2 {[%emt 0:00:33]} fxe5 {[%emt 0:00:31]} 33. Bxe5 {[%emt 0:01:09]} Nxe5 {[%emt 0:00:38]} 34. Rxe5 {[%emt 0:00:07]} Rxe5 {[%emt 0:00:38]} 35. dxe5 {[%emt 0:00:02]} Rxd1+ {[%emt 0:00:11]} 36. Bxd1 {[%emt 0:00:15]} Kf7 {[%emt 0:01:03]} 37. Bb3+ {[%emt 0:00:10]} Ke7 {[%emt 0:00:07]} 38. f4 {[%emt 0:00:34]} c5 {[%emt 0:00:50]} 39. a4 {[%emt 0:00:39]} Bc3 {[%emt 0:00:31]} 40. Kf2 {[%emt 0:00:51]} a6 {[%emt 0:00:24]} 41. Bc4 {[%emt 0:30:33]} Kd7 {[%emt 0:30:34]} 42. Kf3 {[%emt 0:00:09]} Kc6 {[%emt 0:00:32]} 43. Ke4 {[%emt 0:00:23]} b5 {[%emt 0:00:27]} 44. axb5+ {[%emt 0:00:31]} axb5 {[%emt 0:00:08]} 45. Bd5+ {[%emt 0:00:08]} Kd7 {[%emt 0:00:42]} 46. f5 {[%emt 0:00:10]} Ke7 {[%emt 0:00:42]} 47. g4 {[%emt 0:00:06]} h6 {[%emt 0:00:35]} 48. e6 {[%emt 0:03:31]} Bb2 {[%emt 0:00:28]} 49. Bc6 {[%emt 0:00:50]} b4 {[%emt 0:00:30]} 50. Bd5 {[%emt 0:00:07]} Kd6 {[%emt 0:00:28]} 51. Bc4 {[%emt 0:00:26]} Bf6 {[%emt 0:00:27]} 52. Bd5 {[%emt 0:00:42]} Kc7 {[%emt 0:00:29]} 53. Bc4 {[%emt 0:02:03]} Kc6 {[%emt 0:00:11]} 54. Kd3 {[%emt 0:00:44]} Kd6 {[%emt 0:00:51]} 55. Ke4 {[%emt 0:00:08]} Kc6 {[%emt 0:00:26]} 56. Kd3 {[%emt 0:00:17]} Kc7 {[%emt 0:00:35]} 57. Ke4 {[%emt 0:00:07]} Kd6 {[%emt 0:00:07]} 58. Bd5 {[%emt 0:00:45]} Kc7 {[%emt 0:00:45]} 59. Bc4 {[%emt 0:00:24]} Kc6 {[%emt 0:00:42]} 60. Kd3 {[%emt 0:00:22]} Be7 {[%emt 0:00:30]} 61. Ke4 {[%emt 0:00:50]} Bf6 {[%emt 0:00:29]} 62. Kd3 {[%emt 0:02:02]} Kd6 {[%emt 0:00:00]} 63. Ke4 {[%emt 0:00:00]} Bh4 {[%emt 0:00:00]} 64. Bd5 {[%emt 0:00:00]} Bg5 {[%emt 0:00:00]} 65. Bc4 {[%emt 0:00:00]} Be7 {[%emt 0:00:00]} 66. Bd5 {[%emt 0:00:00]} Kc7 {[%emt 0:00:00]} 67. Bc4 {[%emt 0:00:00]} Kb6 {[%emt 0:00:00]} 68. Kd5 {[%emt 0:00:00]} Bf8 {[%emt 0:00:00]} 69. Ke4 {[%emt 0:00:00]} Ka5 {[%emt 0:00:00]} 70. Kd3 {[%emt 0:00:00]} Be7 {[%emt 0:01:52]} 71. Kc2 {[%emt 0:00:00]} Bf6 {[%emt 0:01:10]} 72. Bb3 {[%emt 0:00:00]} Kb5 {[%emt 0:00:54]} 73. Kd3 {[%emt 0:00:00]} Bg5 {[%emt 0:01:14]} 74. Bc4+ {[%emt 0:00:00]} Ka4 {[%emt 0:01:04]} 75. Kc2 {[%emt 0:00:00]} Bf6 {[%emt 0:00:27]} 76. Bb3+ {[%emt 0:00:00]} Kb5 {[%emt 0:00:31]} 77. Kd3 {[%emt 0:00:00]} Bg5 {[%emt 0:00:46]} 78. Bc4+ {[%emt 0:00:00]} Ka4 {[%emt 0:00:26]} 79. Kc2 {[%emt 0:00:00]} Bf6 {[%emt 0:00:34]} 80. Bb3+ {[%emt 0:00:00]} Kb5 {[%emt 0:00:29]} 81. Kd3 {[%emt 0:00:00]} Bg5 {[%emt 0:00:20]} 82. Bc4+ {[%emt 0:00:00]} Ka4 {[%emt 0:00:12]} 83. Ke4 {[%emt 0:39:30]} 1/2-1/2

[Event "Lueneburg Open-B 2019"]
[Site "Lueneburg"]
[Date "2019.08.09"]
[Round "7.10"]
[White "Jessen, Bjarne"]
[Black "Cordsen, Heinrich"]
[Result "0-1"]
[ECO "B11"]
[WhiteElo "1569"]
[BlackElo "1685"]
[Annotator "NA RC"]
[PlyCount "76"]
[EventDate "2019.08.03"]
[EventType "swiss"]
[EventCountry "GER"]
[SourceTitle "playchess.com"]
[Source "ChessBase"]
[SourceQuality "1"]
[TimeControl "40/5400+30:1800+30"]

1. e4 {[%emt 0:00:00]} c6 {[%emt 0:00:00]} 2. Nf3 {[%emt 0:01:17]} d5 {[%emt 0:00:05]} 3. Nc3 {[%emt 0:00:10]} d4 {[%emt 0:04:05]} 4. Ne2 {[%emt 0:00:21]} c5 {[%emt 0:01:30]} 5. c3 {[%emt 0:01:01]} dxc3 {[%emt 0:06:46]} 6. bxc3 {[%emt 0:00:47]} e6 {[%emt 0:05:16]} 7. d4 {[%emt 0:01:33]} Nf6 {[%emt 0:04:43]} 8. Bg5 {[%emt 0:01:00]} Qa5 {[%emt 0:04:03]} 9. Qc2 {[%emt 0:04:02]} Bd7 {[%emt 0:03:40]} 10. Ng3 {[%emt 0:02:04]} cxd4 {[%emt 0:04:12]} 11. Nxd4 {[%emt 0:00:54]} Qxg5 {[%emt 0:01:27]} 12. Bc4 {[%emt 0:00:28]} Be7 {[%emt 0:06:44]} 13. Rb1 {[%emt 0:00:20]} b6 {[%emt 0:00:58]} 14. O-O {[%emt 0:00:31]} O-O {[%emt 0:00:26]} 15. f4 {[%emt 0:00:21]} Qc5 {[%emt 0:03:03]} 16. Bd3 {[%emt 0:00:29]} g6 {[%emt 0:04:29]} 17. Kh1 {[%emt 0:00:32]} Rc8 {[%emt 0:07:38]} 18. Rb3 {[%emt 0:01:37]} Ba4 {[%emt 0:01:01]} 19. f5 {[%emt 0:00:58]} e5 {[%emt 0:06:27]} 20. fxg6 {[%emt 0:01:38]} hxg6 {[%emt 0:00:54]} 21. Ngf5 {[%emt 0:01:11]} Nbd7 {[%emt 0:06:59]} 22. Nxe7+ {[%emt 0:01:10]} Qxe7 {[%emt 0:00:27]} 23. Bb5 {[%emt 0:00:01]} Bxb3 {[%emt 0:01:39]} 24. Nxb3 {[%emt 0:00:07]} Kg7 {[%emt 0:01:26]} 25. Qd3 {[%emt 1:19:58]} Nc5 {[%emt 0:02:43]} 26. Nxc5 {[%emt 0:00:00]} Rxc5 {[%emt 0:00:09]} 27. Rd1 {[%emt 0:00:00]} Rac8 {[%emt 0:00:31]} 28. c4 {[%emt 0:00:00]} R5c7 {[%emt 0:01:44]} 29. h3 {[%emt 0:00:00]} Rh8 {[%emt 0:00:24]} 30. Qf3 {[%emt 0:00:00]} Rd8 {[%emt 0:01:11]} 31. Rf1 {[%emt 0:00:00]} Rd4 {[%emt 0:00:45]} 32. Re1 {[%emt 0:00:00]} Rc8 {[%emt 0:00:29]} 33. g4 {[%emt 0:00:00]} Rcd8 {[%emt 0:00:34]} 34. Re3 {[%emt 0:00:00]} Rd2 {[%emt 0:00:46]} 35. a4 {[%emt 0:00:00]} Qb4 {[%emt 0:01:00]} 36. Re2 {[%emt 0:00:00]} Qb1+ {[%emt 0:01:38]} 37. Kg2 {[%emt 0:06:00]} Rxe2+ {[%emt 0:18:38]} 38. Qxe2 {[%emt 0:00:00]} Qxe4+ {[%emt 0:00:00]} 0-1

[Event "Lueneburg Open-B 2019"]
[Site "Lueneburg"]
[Date "2019.08.09"]
[Round "7.11"]
[White "Domschke, Stephan"]
[Black "Geissler, Karl-Heinz"]
[Result "1/2-1/2"]
[ECO "D00"]
[WhiteElo "1671"]
[BlackElo "1581"]
[Annotator "NA RC"]
[PlyCount "50"]
[EventDate "2019.08.03"]
[EventType "swiss"]
[EventCountry "GER"]
[SourceTitle "playchess.com"]
[Source "ChessBase"]
[SourceQuality "1"]
[TimeControl "40/5400+30:1800+30"]

1. d4 {[%emt 0:00:00]} d5 {[%emt 0:00:00]} 2. Nc3 {[%emt 0:00:00]} Bf5 {[%emt 0:00:17]} 3. f3 {[%emt 0:01:40]} c6 {[%emt 0:01:07]} 4. e4 {[%emt 0:01:02]} Bg6 {[%emt 0:01:24]} 5. Bd3 {[%emt 0:00:30]} e6 {[%emt 0:00:53]} 6. Nge2 {[%emt 0:02:37]} Nd7 {[%emt 0:02:42]} 7. O-O {[%emt 0:01:43]} Qc7 {[%emt 0:05:40]} 8. Na4 {[%emt 0:01:26]} Nb6 {[%emt 0:06:12]} 9. Nc5 {[%emt 0:05:30]} Ne7 {[%emt 0:01:42]} 10. b3 {[%emt 0:05:53]} Nd7 {[%emt 0:01:29]} 11. Na4 {[%emt 0:02:06]} Nc8 {[%emt 0:03:16]} 12. exd5 {[%emt 0:02:16]} exd5 {[%emt 0:02:00]} 13. Re1 {[%emt 0:03:18]} Be7 {[%emt 0:00:45]} 14. Ng3 {[%emt 0:02:17]} O-O {[%emt 0:01:57]} 15. Bxg6 {[%emt 0:01:06]} hxg6 {[%emt 0:00:34]} 16. Nb2 {[%emt 0:01:02]} Bf6 {[%emt 0:01:15]} 17. c3 {[%emt 0:01:50]} Ne7 {[%emt 0:03:57]} 18. Qd3 {[%emt 0:04:19]} Rfe8 {[%emt 0:03:10]} 19. Be3 {[%emt 0:01:04]} Nf8 {[%emt 0:00:29]} 20. Ne2 {[%emt 0:10:46]} Ne6 {[%emt 0:01:41]} 21. Rf1 {[%emt 0:06:33]} Nf5 {[%emt 0:02:15]} 22. Bd2 {[%emt 0:00:23]} Re7 {[%emt 0:09:39]} 23. Rac1 {[%emt 0:03:29]} Rae8 {[%emt 0:00:52]} 24. Kh1 {[%emt 0:01:42]} a6 {[%emt 0:03:34]} 25. Nd1 {[%emt 0:01:38]} Qb8 {[%emt 0:45:40]} 1/2-1/2

[Event "Lueneburg Open-B 2019"]
[Site "Lueneburg"]
[Date "2019.08.09"]
[Round "7.12"]
[White "Krause, Holger"]
[Black "Rempe, Janne"]
[Result "1/2-1/2"]
[ECO "C41"]
[WhiteElo "1639"]
[BlackElo "1594"]
[Annotator "NA RC"]
[PlyCount "51"]
[EventDate "2019.08.03"]
[EventType "swiss"]
[EventCountry "GER"]
[SourceTitle "playchess.com"]
[Source "ChessBase"]
[SourceQuality "1"]
[TimeControl "40/5400+30:1800+30"]

1. e4 {[%emt 0:00:00]} d6 {[%emt 0:00:00]} 2. d4 {[%emt 0:00:00]} Nf6 {[%emt 0:00:00]} 3. Nc3 {[%emt 0:00:27]} Nbd7 {[%emt 0:00:00]} 4. Nf3 {[%emt 0:00:18]} e5 {[%emt 0:00:10]} 5. Bc4 {[%emt 0:02:22]} Be7 {[%emt 0:00:07]} 6. O-O {[%emt 0:00:50]} O-O {[%emt 0:00:11]} 7. Re1 {[%emt 0:02:09]} c6 {[%emt 0:00:53]} 8. Bb3 {[%emt 0:02:29]} Qc7 {[%emt 0:02:12]} 9. a4 {[%emt 0:05:48]} a5 {[%emt 0:00:07]} 10. Bg5 {[%emt 0:03:39]} Re8 {[%emt 0:01:04]} 11. dxe5 {[%emt 0:02:27]} dxe5 {[%emt 0:00:11]} 12. Qe2 {[%emt 0:06:05]} Nf8 {[%emt 0:01:18]} 13. Rad1 {[%emt 0:02:35]} Ng6 {[%emt 0:01:06]} 14. h3 {[%emt 0:04:09]} Bd7 {[%emt 0:03:36]} 15. Qe3 {[%emt 0:06:43]} Qc8 {[%emt 0:02:36]} 16. Rd3 {[%emt 0:06:35]} Nh5 {[%emt 0:08:28]} 17. Bxe7 {[%emt 0:03:51]} Rxe7 {[%emt 0:00:29]} 18. Ne2 {[%emt 0:03:07]} Ngf4 {[%emt 0:01:41]} 19. Nxf4 {[%emt 0:00:45]} Nxf4 {[%emt 0:00:39]} 20. Qc5 {[%emt 0:07:12]} Re8 {[%emt 0:01:24]} 21. Rd2 {[%emt 0:07:46]} Bxh3 {[%emt 0:00:57]} 22. Bxf7+ {[%emt 0:02:33]} Kh8 {[%emt 0:04:06]} 23. Bxe8 {[%emt 0:02:50]} Qxe8 {[%emt 0:00:39]} 24. Red1 {[%emt 0:02:14]} Bxg2 {[%emt 0:03:27]} 25. Qxe5 {[%emt 0:01:43]} Bxf3 {[%emt 0:10:45]} 26. Qxf4 {[%emt 0:04:29]} 1/2-1/2

[Event "Lueneburg Open-B 2019"]
[Site "Lueneburg"]
[Date "2019.08.09"]
[Round "7.13"]
[White "Martin, David"]
[Black "Levink, Clemens"]
[Result "1/2-1/2"]
[ECO "B50"]
[WhiteElo "1494"]
[BlackElo "1719"]
[Annotator "NA RC"]
[PlyCount "48"]
[EventDate "2019.08.03"]
[EventType "swiss"]
[EventCountry "GER"]
[SourceTitle "playchess.com"]
[Source "ChessBase"]
[SourceQuality "1"]
[TimeControl "40/5400+30:1800+30"]

1. e4 {[%emt 0:00:00]} c5 {[%emt 0:00:00]} 2. Nf3 {[%emt 0:00:00]} d6 {[%emt 0:00:00]} 3. g3 {[%emt 0:00:29]} Nf6 {[%emt 0:01:19]} 4. Nc3 {[%emt 0:00:54]} Nc6 {[%emt 0:01:50]} 5. h3 {[%emt 0:04:03]} Bd7 {[%emt 0:00:21]} 6. d3 {[%emt 0:00:33]} g6 {[%emt 0:00:13]} 7. Ne2 {[%emt 0:00:53]} Bg7 {[%emt 0:00:14]} 8. c3 {[%emt 0:00:39]} b5 {[%emt 0:03:52]} 9. a3 {[%emt 0:02:08]} a6 {[%emt 0:01:04]} 10. Bg2 {[%emt 0:00:32]} Rb8 {[%emt 0:01:54]} 11. O-O {[%emt 0:00:36]} Qc8 {[%emt 0:00:52]} 12. Kh2 {[%emt 0:01:07]} h5 {[%emt 0:02:27]} 13. Bf4 {[%emt 0:06:51]} Nh7 {[%emt 0:06:50]} 14. Qd2 {[%emt 0:04:27]} Ne5 {[%emt 0:12:25]} 15. Nxe5 {[%emt 0:05:52]} dxe5 {[%emt 0:01:01]} 16. Bh6 {[%emt 0:03:54]} O-O {[%emt 0:03:57]} 17. Bxg7 {[%emt 0:01:45]} Kxg7 {[%emt 0:00:36]} 18. f4 {[%emt 0:01:28]} Qc7 {[%emt 0:05:46]} 19. Rf3 {[%emt 0:07:14]} Rbd8 {[%emt 0:02:42]} 20. Raf1 {[%emt 0:07:22]} Bc6 {[%emt 0:08:34]} 21. Qe3 {[%emt 0:05:11]} Bb7 {[%emt 0:01:45]} 22. fxe5 {[%emt 0:03:28]} Qxe5 {[%emt 0:01:14]} 23. d4 {[%emt 0:05:33]} cxd4 {[%emt 0:03:06]} 24. cxd4 {[%emt 0:00:08]} Qc7 {[%emt 0:05:01]} 1/2-1/2